fUSD/lending_fUSD_20250209
["ID","MTS","AMOUNT","RATE_DAILY","PERIOD"]
[352372492,1739065859091,-500.0,0.00010541,2]
[352372493,1739065859103,-485.92338798,0.00010541,2]
[352372494,1739065859112,-500.0,0.00010541,2]
[352372495,1739065859121,-500.0,0.00010541,2]
[352372496,1739065859131,-500.0,0.00010541,2]
[352372497,1739065859141,-1083.06,0.00010541,2]
[352372498,1739065859150,-500.0,0.00010541,2]
[352372499,1739065859159,-500.0,0.00010541,2]
[352372500,1739065859168,-500.0,0.00010541,2]
[352372501,1739065859177,-500.0,0.00010541,2]
[352372502,1739065859187,-533.58,0.00010541,2]
[352372503,1739065859196,-899.57,0.00010541,2]
[352372504,1739065859206,-500.0,0.00010541,2]
[352372505,1739065859215,-2827.44,0.00010541,2]
[352372506,1739065859223,-500.0,0.00010541,2]
[352372507,1739065859234,-500.0,0.00010541,2]
[352372508,1739065859243,-500.0,0.00010541,2]
[352372509,1739065859252,-500.0,0.00010541,2]
[352372510,1739065859261,-814.38,0.00010541,2]
[352372511,1739065859270,-500.0,0.00010541,2]
[352372512,1739065859279,-1161.87,0.00010541,2]
[352372513,1739065859288,-500.0,0.00010541,2]
[352372514,1739065859297,-508.20453642,0.00010541,2]
[352372515,1739065859307,-1281.49,0.00010541,2]
[352372516,1739065859315,-500.0,0.00010541,2]
[352372517,1739065859325,-1000.0,0.00010541,2]
[352372518,1739065859335,-500.0,0.00010541,2]
[352372519,1739065859344,-500.0,0.00010541,2]
[352372520,1739065859353,-1007.35,0.00010541,2]
[352372521,1739065859363,-500.0,0.00010541,2]
[352372522,1739065859372,-500.0,0.00010541,2]
[352372523,1739065859382,-308.94471896,0.00010541,2]
[352372524,1739065859391,-500.0,0.00010541,2]
[352372525,1739065859400,-500.0,0.00010541,2]
[352372526,1739065859410,-1979.78,0.00010541,2]
[352372527,1739065859419,-500.0,0.00010541,2]
[352372528,1739065859428,-500.0,0.00010541,2]
[352372529,1739065859437,-2191.6,0.00010541,2]
[352372530,1739065859447,-505.04958734,0.00010541,2]
[352372531,1739065859456,-533.37093683,0.00010541,2]
[352372532,1739065859465,-500.0,0.00010541,2]
[352372533,1739065859475,-500.0,0.00010541,2]
[352372534,1739065859485,-500.0,0.00010541,2]
[352372535,1739065859495,-500.0,0.00010541,2]
[352372536,1739065859505,-753.0,0.00010567,2]
[352372537,1739065859514,-1400.0,0.000106,3]
[352372538,1739065859523,-151.85,0.0001063,2]
[352372539,1739065859533,-196.619841,0.00010665,2]
[352372540,1739065859542,-153.78064735,0.00010671,2]
[352372541,1739065859552,-500.0,0.00010676,2]
[352372542,1739065859562,-847.54,0.00010676,2]
[352372543,1739065859571,-500.0,0.00010676,2]
[352372544,1739065859580,-500.0,0.00010676,2]
[352372545,1739065859589,-500.0,0.00010676,2]
[352372546,1739065859598,-500.0,0.00010677,2]
[352372547,1739065859608,-500.0,0.00010677,2]
[352372548,1739065859617,-777.99,0.00010677,2]
[352372549,1739065859627,-500.0,0.00010677,2]
[352372550,1739065859636,-580.08,0.00010677,2]
[352372551,1739065859646,-500.0,0.00010677,2]
[352372552,1739065859655,-500.0,0.00010677,2]
[352372553,1739065859664,-500.0,0.00010677,2]
[352372554,1739065859674,-500.0,0.00010677,2]
[352372555,1739065859683,-500.0,0.00010677,2]
[352372556,1739065859692,-668.51,0.00010677,2]
[352372557,1739065859701,-500.0,0.00010677,2]
[352372558,1739065859710,-500.0,0.00010677,2]
[352372559,1739065859719,-500.0,0.00010677,2]
[352372560,1739065859729,-500.0,0.00010677,2]
[352372561,1739065859738,-500.0,0.00010677,2]
[352372562,1739065859747,-562.51,0.00010677,2]
[352372563,1739065859756,-730.87,0.00010677,2]
[352372564,1739065859765,-734.963011,0.00010677,2]
[352372565,1739065859775,-500.0,0.00010677,2]
[352372566,1739065859784,-500.0,0.00010677,2]
[352372567,1739065859793,-778.15,0.00010677,2]
[352372568,1739065859802,-500.0,0.00010677,2]
[352372569,1739065859811,-828.926949,0.00010677,2]
[352372570,1739065859820,-500.0,0.00010677,2]
[352372571,1739065859829,-500.0,0.00010677,2]
[352372572,1739065859839,-500.0,0.00010677,2]
[352372573,1739065859849,-500.0,0.00010677,2]
[352372574,1739065859860,-782.31,0.00010677,2]
[352372575,1739065859872,-500.0,0.00010677,2]
[352372576,1739065859883,-500.0,0.00010677,2]
[352372577,1739065859893,-151.964696,0.00010677,2]
[352372578,1739065859902,-762.04,0.00010677,2]
[352372579,1739065859911,-500.0,0.00010677,2]
[352372580,1739065859920,-500.0,0.00010677,2]
[352372581,1739065859930,-513.33,0.00010677,2]
[352372582,1739065859939,-500.0,0.00010677,2]
[352372583,1739065859948,-500.0,0.00010677,2]
[352372584,1739065859957,-783.32,0.00010677,2]
[352372585,1739065859967,-848.63,0.00010677,2]
[352372586,1739065859976,-500.0,0.00010677,2]
[352372587,1739065859985,-503.57,0.00010677,2]
[352372588,1739065859995,-500.0,0.00010677,2]
[352372589,1739065860004,-500.0,0.00010677,2]
[352372590,1739065860013,-500.0,0.00010677,2]
[352372591,1739065860023,-500.0,0.00010677,2]
[352372592,1739065860033,-500.0,0.00010677,2]
[352372593,1739065860042,-500.0,0.00010677,2]
[352372594,1739065860052,-500.0,0.00010677,2]
[352372595,1739065860062,-535.45,0.00010677,2]
[352372596,1739065860072,-692.86,0.00010677,2]
[352372597,1739065860081,-338.17733702,0.00010677,2]
[352372598,1739065860092,-685.54,0.00010677,2]
[352372599,1739065860103,-500.0,0.00010677,2]
[352372600,1739065860112,-500.0,0.00010677,2]
[352372601,1739065860280,-500.0,0.00010677,2]
[352372602,1739065860290,-672.36,0.00010677,2]
[352372603,1739065860300,-500.0,0.00010677,2]
[352372604,1739065860310,-500.0,0.00010677,2]
[352372605,1739065860321,-716.17,0.00010677,2]
[352372606,1739065860331,-509.07676868,0.00010677,2]
[352372607,1739065860340,-500.0,0.00010677,2]
[352372608,1739065860349,-164.7397877,0.00010677,2]
[352372609,1739065860359,-508.04381837,0.00010677,2]
[352372610,1739065860370,-500.0,0.00010677,2]
[352372611,1739065860380,-500.0,0.00010677,2]
[352372612,1739065860389,-500.0,0.00010677,2]
[352372613,1739065860399,-500.0,0.00010677,2]
[352372614,1739065860410,-500.0,0.00010677,2]
[352372615,1739065860420,-599.90352855,0.00010677,2]
[352372616,1739065860430,-1452.54,0.00010677,2]
[352372617,1739065860439,-500.0,0.00010677,2]
[352372618,1739065860449,-919.49,0.00010677,2]
[352372619,1739065860458,-1599.2,0.00010677,2]
[352372620,1739065860468,-264.69190377,0.00010677,2]
[352372621,1739065860478,-500.0,0.00010677,2]
[352372622,1739065860488,-500.0,0.00010677,2]
[352372623,1739065860497,-1019.85,0.00010677,2]
[352372624,1739065860506,-1931.5,0.00010677,2]
[352372625,1739065860516,-836.62,0.00010677,2]
[352372626,1739065860526,-500.0,0.00010677,2]
[352372627,1739065860536,-500.0,0.00010677,2]
[352372628,1739065860547,-500.0,0.00010677,2]
[352372629,1739065860557,-1850.11,0.00010677,2]
[352372630,1739065860566,-500.0,0.00010677,2]
[352372631,1739065860576,-830.1,0.00010677,2]
[352372632,1739065860585,-837.23,0.00010677,2]
[352372633,1739065860595,-1605.72,0.00010677,2]
[352372634,1739065860605,-1476.07,0.00010677,2]
[352372635,1739065860614,-2142.18,0.00010677,2]
[352372636,1739065860623,-500.0,0.00010677,2]
[352372637,1739065860633,-500.0,0.00010677,2]
[352372638,1739065860643,-961.51,0.00010677,2]
[352372639,1739065860653,-500.0,0.00010677,2]
[352372640,1739065860663,-500.0,0.00010677,2]
[352372641,1739065860676,-829.85,0.00010677,2]
[352372642,1739065860686,-1156.22,0.00010677,2]
[352372643,1739065860695,-629.87,0.00010677,2]
[352372644,1739065860705,-1910.75,0.00010677,2]
[352372645,1739065860714,-500.0,0.00010677,2]
[352372646,1739065860725,-500.0,0.00010677,2]
[352372647,1739065860735,-729.05,0.00010677,2]
[352372648,1739065860745,-500.0,0.00010677,2]
[352372649,1739065860755,-500.0,0.00010677,2]
[352372650,1739065860764,-1292.26,0.00010677,2]
[352372651,1739065860774,-1023.31,0.00010677,2]
[352372652,1739065860784,-500.0,0.00010677,2]
[352372653,1739065860793,-500.0,0.00010677,2]
[352372654,1739065860803,-1324.77,0.00010677,2]
[352372655,1739065860813,-1235.9,0.00010677,2]
[352372656,1739065860823,-574.84,0.00010677,2]
[352372657,1739065860832,-500.0,0.00010677,2]
[352372658,1739065860842,-500.0,0.00010677,2]
[352372659,1739065860851,-151.964696,0.00010677,2]
[352372660,1739065860861,-678.2,0.00010677,2]
[352372661,1739065860871,-1451.54,0.00010677,2]
[352372662,1739065860880,-851.41,0.00010677,2]
[352372663,1739065860889,-500.0,0.00010677,2]
[352372664,1739065860899,-500.0,0.00010677,2]
[352372665,1739065860909,-500.0,0.00010677,2]
[352372666,1739065860918,-500.0,0.00010677,2]
[352372667,1739065860927,-1660.93,0.00010677,2]
[352372668,1739065860936,-500.0,0.00010677,2]
[352372669,1739065860946,-2348.11,0.00010677,2]
[352372670,1739065860955,-321.45195362,0.00010677,2]
[352372671,1739065860965,-940.4,0.00010677,2]
[352372672,1739065860976,-500.0,0.00010677,2]
[352372673,1739065860985,-3337.18,0.00010677,2]
[352372674,1739065860995,-2430.64,0.00010677,2]
[352372675,1739065861005,-500.0,0.00010677,2]
[352372676,1739065861015,-500.0,0.00010677,2]
[352372677,1739065861024,-500.0,0.00010677,2]
[352372678,1739065861034,-1070.1,0.00010677,2]
[352372679,1739065861044,-2276.95,0.00010677,2]
[352372680,1739065861053,-672.03,0.00010677,2]
[352372681,1739065861063,-1406.86,0.00010677,2]
[352372682,1739065861072,-500.0,0.00010677,2]
[352372683,1739065861081,-960.92,0.00010677,2]
[352372684,1739065861092,-166.84490125,0.00010677,2]
[352372685,1739065861103,-1197.83,0.00010677,2]
[352372686,1739065861112,-500.0,0.00010677,2]
[352372687,1739065861122,-908.43,0.00010677,2]
[352372688,1739065861131,-1585.45,0.00010677,2]
[352372689,1739065861142,-500.0,0.00010677,2]
[352372690,1739065861152,-669.33,0.00010677,2]
[352372691,1739065861161,-504.04,0.00010677,2]
[352372692,1739065861173,-500.0,0.00010677,2]
[352372693,1739065861183,-500.0,0.00010677,2]
[352372694,1739065861193,-500.0,0.00010677,2]
[352372695,1739065861203,-1615.81,0.00010677,2]
[352372696,1739065861212,-500.0,0.00010677,2]
[352372697,1739065861222,-500.0,0.00010677,2]
[352372698,1739065861232,-1554.99,0.00010677,2]
[352372699,1739065861242,-500.0,0.00010677,2]
[352372700,1739065861251,-904.99,0.00010677,2]
[352372701,1739065861262,-1316.45,0.00010677,2]
[352372702,1739065861271,-500.0,0.00010677,2]
[352372703,1739065861281,-500.0,0.00010677,2]
[352372704,1739065861291,-773.68,0.00010677,2]
[352372705,1739065861301,-1321.5,0.00010677,2]
[352372706,1739065861310,-563.42,0.00010677,2]
[352372707,1739065861320,-1652.3,0.00010677,2]
[352372708,1739065861330,-1176.32,0.00010677,2]
[352372709,1739065861340,-500.0,0.00010677,2]
[352372710,1739065861349,-500.0,0.00010677,2]
[352372711,1739065861360,-2093.5,0.00010677,2]
[352372712,1739065861369,-2834.78,0.00010677,2]
[352372713,1739065861378,-154.57,0.00010677,2]
[352372714,1739065861388,-1276.77,0.00010677,2]
[352372715,1739065861398,-507.00033245,0.00010677,2]
[352372716,1739065861408,-1561.18,0.00010677,2]
[352372717,1739065861418,-605.41,0.00010677,2]
[352372718,1739065861427,-1124.08,0.00010677,2]
[352372719,1739065861436,-500.0,0.00010677,2]
[352372720,1739065861446,-1196.21,0.00010677,2]
[352372721,1739065861455,-500.0,0.00010677,2]
[352372722,1739065861465,-500.0,0.00010677,2]
[352372723,1739065861475,-695.25,0.00010677,2]
[352372724,1739065861485,-518.29,0.00010677,2]
[352372725,1739065861495,-506.85398992,0.00010677,2]
[352372726,1739065861504,-500.0,0.00010677,2]
[352372727,1739065861514,-1471.32,0.00010677,2]
[352372728,1739065861524,-1636.79,0.00010677,2]
[352372729,1739065861533,-509.77175885,0.00010677,2]
[352372730,1739065861543,-249.74831268,0.00010677,2]
[352372731,1739065861553,-1949.4,0.00010677,2]
[352372732,1739065861563,-509.2628781,0.00010677,2]
[352372733,1739065861573,-627.54,0.00010677,2]
[352372734,1739065861582,-1887.98,0.00010677,2]
[352372735,1739065861592,-1518.61,0.00010677,2]
[352372736,1739065861601,-500.0,0.00010677,2]
[352372737,1739065861611,-816.06,0.00010677,2]
[352372738,1739065861620,-500.0,0.00010677,2]
[352372739,1739065861630,-500.0,0.00010677,2]
[352372740,1739065861639,-700.89,0.00010677,2]
[352372741,1739065861648,-2133.9,0.00010677,2]
[352372742,1739065861658,-565.73,0.00010677,2]
[352372743,1739065861668,-500.0,0.00010677,2]
[352372744,1739065861678,-500.0,0.00010677,2]
[352372745,1739065861687,-500.0,0.00010677,2]
[352372746,1739065861696,-500.0,0.00010677,2]
[352372747,1739065861706,-2090.87,0.00010677,2]
[352372748,1739065861715,-1114.73,0.00010677,2]
[352372749,1739065861725,-2216.88,0.00010677,2]
[352372750,1739065861735,-500.0,0.00010677,2]
[352372751,1739065861745,-500.0,0.00010677,2]
[352372752,1739065861754,-1425.9,0.00010677,2]
[352372753,1739065861764,-4849.59,0.00010677,2]
[352372754,1739065861773,-512.11462096,0.00010677,2]
[352372755,1739065861783,-2088.29,0.00010677,2]
[352372756,1739065861793,-864.75,0.00010677,2]
[352372757,1739065861802,-500.0,0.00010677,2]
[352372758,1739065861812,-631.13,0.00010677,2]
[352372759,1739065861821,-500.0,0.00010677,2]
[352372760,1739065861831,-3006.06,0.00010677,2]
[352372761,1739065861840,-500.0,0.00010677,2]
[352372762,1739065861849,-482.11207636,0.00010677,2]
[352372763,1739065861859,-1354.44,0.00010677,2]
[352372764,1739065861869,-500.0,0.00010677,2]
[352372765,1739065861879,-500.0,0.00010677,2]
[352372766,1739065861888,-500.0,0.00010677,2]
[352372767,1739065861898,-500.0,0.00010678,2]
[352372768,1739065861907,-500.0,0.00010678,2]
[352372769,1739065861917,-500.0,0.00010678,2]
[352372770,1739065861926,-510.30038048,0.00010678,2]
[352372771,1739065861936,-500.0,0.00010678,2]
[352372772,1739065861945,-506.13,0.00010678,2]
[352372773,1739065861955,-511.26222862,0.00010678,2]
[352372774,1739065861964,-500.0,0.00010678,2]
[352372775,1739065861973,-323.66941716,0.00010678,2]
[352372776,1739065861983,-500.0,0.00010678,2]
[352372777,1739065861992,-500.0,0.00010678,2]
[352372778,1739065862001,-500.0,0.00010678,2]
[352372779,1739065862011,-500.0,0.00010678,2]
[352372780,1739065862021,-500.0,0.00010678,2]
[352372781,1739065862030,-315.1760014,0.00010678,2]
[352372782,1739065862040,-500.0,0.00010678,2]
[352372783,1739065862050,-500.0,0.00010678,2]
[352372784,1739065862060,-294.69644525,0.00010678,2]
[352372785,1739065862071,-524.86273463,0.00010678,2]
[352372786,1739065862081,-500.0,0.00010678,2]
[352372787,1739065862093,-500.0,0.00010678,2]
[352372788,1739065862104,-500.0,0.00010678,2]
[352372789,1739065862113,-500.0,0.00010678,2]
[352372790,1739065862123,-519.95014775,0.00010678,2]
[352372791,1739065862132,-361.16201592,0.00010678,2]
[352372792,1739065862142,-500.0,0.00010678,2]
[352372793,1739065862152,-500.0,0.00010678,2]
[352372794,1739065862162,-500.0,0.00010678,2]
[352372795,1739065862174,-500.0,0.00010678,2]
[352372796,1739065862184,-599.17029518,0.00010678,2]
[352372797,1739065862194,-500.0,0.00010678,2]
[352372798,1739065862203,-500.0,0.00010678,2]
[352372799,1739065862215,-500.0,0.00010678,2]
[352372800,1739065862225,-500.0,0.00010678,2]
[352372801,1739065862235,-500.0,0.00010678,2]
[352372802,1739065862245,-588.81927532,0.00010678,2]
[352372803,1739065862254,-602.25761871,0.00010678,2]
[352372804,1739065862263,-500.0,0.00010678,2]
[352372805,1739065862272,-500.0,0.00010678,2]
[352372806,1739065862282,-500.0,0.00010678,2]
[352372807,1739065862291,-538.3776524,0.00010678,2]
[352372808,1739065862301,-500.0,0.00010678,2]
[352372809,1739065862313,-500.0,0.00010678,2]
[352372810,1739065862322,-500.0,0.00010678,2]
[352372811,1739065862333,-630.91882329,0.00010678,2]
[352372812,1739065862343,-500.0,0.00010678,2]
[352372813,1739065862352,-500.0,0.00010678,2]
[352372814,1739065862361,-500.0,0.00010678,2]
[352372815,1739065862371,-558.41692112,0.00010678,2]
[352372816,1739065862380,-500.0,0.00010678,2]
[352372817,1739065862390,-507.65909573,0.00010678,2]
[352372818,1739065862399,-500.0,0.00010678,2]
[352372819,1739065862408,-500.0,0.00010678,2]
[352372820,1739065862417,-286.48404381,0.00010678,2]
[352372821,1739065862427,-285.76492113,0.00010678,2]
[352372822,1739065862436,-500.0,0.00010678,2]
[352372823,1739065862446,-507.61518687,0.00010678,2]
[352372824,1739065862455,-509.66304159,0.00010678,2]
[352372825,1739065862465,-500.0,0.00010678,2]
[352372826,1739065862474,-500.0,0.00010678,2]
[352372827,1739065862484,-500.0,0.00010678,2]
[352372828,1739065862493,-327.33053985,0.00010678,2]
[352372829,1739065862504,-336.74692794,0.00010678,2]
[352372830,1739065862513,-500.0,0.00010678,2]
[352372831,1739065862523,-500.0,0.00010678,2]
[352372832,1739065862532,-321.72729104,0.00010678,2]
[352372833,1739065862541,-500.0,0.00010678,2]
[352372834,1739065862551,-500.0,0.00010678,2]
[352372835,1739065862561,-500.0,0.00010678,2]
[352372836,1739065862571,-500.0,0.00010678,2]
[352372837,1739065862581,-500.0,0.00010678,2]
[352372838,1739065862590,-500.0,0.00010678,2]
[352372839,1739065862600,-500.0,0.00010678,2]
[352372840,1739065862609,-500.0,0.00010678,2]
[352372841,1739065862619,-500.0,0.00010678,2]
[352372842,1739065862629,-500.0,0.00010678,2]
[352372843,1739065862638,-514.85666315,0.00010678,2]
[352372844,1739065862648,-500.0,0.00010678,2]
[352372845,1739065862658,-500.0,0.00010678,2]
[352372846,1739065862667,-500.0,0.00010678,2]
[352372847,1739065862676,-500.0,0.00010678,2]
[352372848,1739065862731,-505.88035807,0.00010678,2]
[352372849,1739065862741,-504.34594943,0.00010678,2]
[352372850,1739065862750,-500.0,0.00010678,2]
[352372851,1739065862760,-500.0,0.00010678,2]
[352372852,1739065862769,-500.0,0.00010678,2]
[352372853,1739065862778,-500.0,0.00010678,2]
[352372854,1739065862788,-500.0,0.00010678,2]
[352372855,1739065862797,-500.0,0.00010678,2]
[352372856,1739065862806,-500.0,0.00010678,2]
[352372857,1739065862815,-500.0,0.00010678,2]
[352372858,1739065862824,-500.0,0.00010678,2]
[352372859,1739065862834,-500.0,0.00010678,2]
[352372860,1739065862843,-500.0,0.00010678,2]
[352372861,1739065862853,-500.0,0.00010678,2]
[352372862,1739065862864,-500.0,0.00010678,2]
[352372863,1739065862874,-504.05471287,0.00010678,2]
[352372864,1739065862884,-500.0,0.00010678,2]
[352372865,1739065862893,-517.69,0.00010678,2]
[352372866,1739065862906,-444.5711746,0.00010678,2]
[352372867,1739065862915,-500.0,0.00010678,2]
[352372868,1739065862924,-507.44778692,0.00010678,2]
[352372869,1739065862934,-554.93,0.00010678,2]
[352372870,1739065862944,-500.0,0.00010678,2]
[352372871,1739065862955,-500.0,0.00010678,2]
[352372872,1739065862966,-500.0,0.00010678,2]
[352372873,1739065862976,-417.35,0.00010678,2]
[352372874,1739065862985,-500.0,0.00010678,2]
[352372875,1739065862995,-1083.06,0.00010678,2]
[352372876,1739065863005,-500.0,0.00010678,2]
[352372877,1739065863014,-500.0,0.00010678,2]
[352372878,1739065863023,-500.0,0.00010678,2]
[352372879,1739065863033,-552.30028923,0.00010678,2]
[352372880,1739065863042,-533.58,0.00010678,2]
[352372881,1739065863051,-899.57,0.00010678,2]
[352372882,1739065863061,-500.0,0.00010678,2]
[352372883,1739065863070,-2827.44,0.00010678,2]
[352372884,1739065863079,-500.0,0.00010678,2]
[352372885,1739065863089,-500.0,0.00010678,2]
[352372886,1739065863101,-500.0,0.00010678,2]
[352372887,1739065863110,-500.0,0.00010678,2]
[352372888,1739065863120,-814.38,0.00010678,2]
[352372889,1739065863130,-500.0,0.00010678,2]
[352372890,1739065863141,-1161.87,0.00010678,2]
[352372891,1739065863150,-500.0,0.00010678,2]
[352372892,1739065863160,-1281.49,0.00010678,2]
[352372893,1739065863170,-500.0,0.00010678,2]
[352372894,1739065863180,-1000.0,0.00010678,2]
[352372895,1739065863190,-500.0,0.00010678,2]
[352372896,1739065863199,-500.0,0.00010678,2]
[352372897,1739065863208,-1007.35,0.00010678,2]
[352372898,1739065863217,-500.0,0.00010678,2]
[352372899,1739065863227,-509.14320955,0.00010678,2]
[352372900,1739065863236,-500.0,0.00010678,2]
[352372901,1739065863246,-500.0,0.00010678,2]
[352372902,1739065863255,-1979.78,0.00010678,2]
[352372903,1739065863265,-500.0,0.00010678,2]
[352372904,1739065863276,-2191.6,0.00010678,2]
[352372905,1739065863286,-500.0,0.00010678,2]
[352372906,1739065863295,-500.0,0.00010678,2]
[352372907,1739065863305,-500.0,0.00010678,2]
[352372908,1739065863315,-500.0,0.00010678,2]
[352372909,1739065863325,-500.0,0.00010678,2]
[352372910,1739065863335,-152.64,0.00010679,2]
[352372911,1739065863345,-1800.0,0.000107,3]
[352372912,1739065863355,-1000.0,0.00010721,2]
[352372913,1739065863365,-2300.0,0.000108,3]
[352372914,1739065863374,-500.0,0.00010813,2]
[352372915,1739065863384,-847.54,0.00010813,2]
[352372916,1739065863393,-500.0,0.00010813,2]
[352372917,1739065863402,-500.0,0.00010813,2]
[352372918,1739065863412,-500.0,0.00010814,2]
[352372919,1739065863421,-588.01776893,0.00010814,2]
[352372920,1739065863430,-777.99,0.00010814,2]
[352372921,1739065863440,-500.0,0.00010814,2]
[352372922,1739065863449,-580.08,0.00010814,2]
[352372923,1739065863458,-500.0,0.00010814,2]
[352372924,1739065863467,-500.0,0.00010814,2]
[352372925,1739065863477,-500.0,0.00010814,2]
[352372926,1739065863487,-500.0,0.00010814,2]
[352372927,1739065863496,-500.0,0.00010814,2]
[352372928,1739065863506,-668.51,0.00010814,2]
[352372929,1739065863515,-500.0,0.00010814,2]
[352372930,1739065863526,-500.0,0.00010814,2]
[352372931,1739065863536,-500.0,0.00010814,2]
[352372932,1739065863546,-500.0,0.00010814,2]
[352372933,1739065863555,-500.0,0.00010814,2]
[352372934,1739065863565,-562.51,0.00010814,2]
[352372935,1739065863574,-730.87,0.00010814,2]
[352372936,1739065863584,-734.963011,0.00010814,2]
[352372937,1739065863594,-500.0,0.00010814,2]
[352372938,1739065863603,-500.0,0.00010814,2]
[352372939,1739065863612,-778.15,0.00010814,2]
[352372940,1739065863622,-500.0,0.00010814,2]
[352372941,1739065863632,-828.926949,0.00010814,2]
[352372942,1739065863642,-500.0,0.00010814,2]
[352372943,1739065863651,-500.0,0.00010814,2]
[352372944,1739065863661,-500.0,0.00010814,2]
[352372945,1739065863670,-500.0,0.00010814,2]
[352372946,1739065863680,-782.31,0.00010814,2]
[352372947,1739065863691,-500.0,0.00010814,2]
[352372948,1739065863701,-500.0,0.00010814,2]
[352372949,1739065863711,-762.04,0.00010814,2]
[352372950,1739065863721,-500.0,0.00010814,2]
[352372951,1739065863732,-500.0,0.00010814,2]
[352372952,1739065863742,-513.33,0.00010814,2]
[352372953,1739065863752,-500.0,0.00010814,2]
[352372954,1739065863762,-500.0,0.00010814,2]
[352372955,1739065863771,-783.32,0.00010814,2]
[352372956,1739065863781,-848.63,0.00010814,2]
[352372957,1739065863791,-500.0,0.00010814,2]
[352372958,1739065863801,-503.57,0.00010814,2]
[352372959,1739065863811,-348.53926186,0.00010814,2]
[352372960,1739065863821,-500.0,0.00010814,2]
[352372961,1739065863830,-508.52702746,0.00010814,2]
[352372962,1739065863840,-500.0,0.00010814,2]
[352372963,1739065863849,-500.0,0.00010814,2]
[352372964,1739065863859,-510.27248189,0.00010814,2]
[352372965,1739065863868,-500.0,0.00010814,2]
[352372966,1739065863878,-535.45,0.00010814,2]
[352372967,1739065863887,-692.86,0.00010814,2]
[352372968,1739065863897,-685.54,0.00010814,2]
[352372969,1739065863907,-500.0,0.00010814,2]
[352372970,1739065863916,-529.04230417,0.00010814,2]
[352372971,1739065863925,-516.64263473,0.00010814,2]
[352372972,1739065863935,-672.36,0.00010814,2]
[352372973,1739065863944,-500.0,0.00010814,2]
[352372974,1739065863953,-512.1386865,0.00010814,2]
[352372975,1739065863963,-716.17,0.00010814,2]
[352372976,1739065863972,-500.0,0.00010814,2]
[352372977,1739065863982,-500.0,0.00010814,2]
[352372978,1739065863991,-500.0,0.00010814,2]
[352372979,1739065864000,-500.0,0.00010814,2]
[352372980,1739065864010,-500.0,0.00010814,2]
[352372981,1739065864019,-1452.54,0.00010814,2]
[352372982,1739065864029,-500.0,0.00010814,2]
[352372983,1739065864038,-919.49,0.00010814,2]
[352372984,1739065864047,-1599.2,0.00010814,2]
[352372985,1739065864058,-500.0,0.00010814,2]
[352372986,1739065864067,-251.06676781,0.00010814,2]
[352372987,1739065864077,-1019.85,0.00010814,2]
[352372988,1739065864086,-1931.5,0.00010814,2]
[352372989,1739065864101,-836.62,0.00010814,2]
[352372990,1739065864115,-515.04397403,0.00010814,2]
[352372991,1739065864125,-500.0,0.00010814,2]